{"text_format":"3","workbook":"xlsx","n_sheets":3,"sheets":["ISO 6185-1, Page 1","ISO 6185-1, Page 2","ISO 6815-1, Page 3"],"not_rendered":{"images":2,"defined_names":5},"read":"whole","date_system":"1900"}

{"sheet":"ISO 6185-1, Page 1","index":0,"n_rows":52,"n_cols":5,"rows_kept":52,"merged":[[0,0,0,4],[8,2,8,4],[9,2,9,4],[10,2,10,4],[11,2,11,4],[12,2,12,4],[13,2,13,4],[14,2,14,4],[15,2,15,4],[16,2,16,4],[17,2,17,4],[18,2,18,4],[19,2,19,4],[20,2,20,4],[21,2,21,4],[22,2,22,4],[24,0,24,1],[25,1,25,2],[26,1,26,2]]}
[]
[]
[null,"ISO 6185-1:2001 Inflatables & Ribs en250115"]
[]
[null,"CERTIFICATION APPLICATION","FOR  IMCI  USE ONLY"]
[null,"Recreational Craft - Inflatable boat - Part 1","  Certificate No.: "]
[null,"Ref.: EN ISO 6185-1:2018"]
[]
[null,"Manufacturer:"]
[null,"Address:"]
[null,"ZIP Code:"]
[null,"City:"]
[null,"Country:"]
[null,"VAT #:"]
[null,"Signatory, Name:"]
[null,"Signatory, Title:"]
[null,"Phone:"]
[null,"Email:"]
[null,"WWW:"]
[null,"Model Year on Watercraft Identification Number (WIN):"]
[null,"Model Name:"]
[null,"Other model names (with identical technical data):"]
[null,"Head of Engineering:"]
[]
["This application is valid for:"]
[null,"Directive 2013/53/EU (RCD II) related to CE marking for EU.",null,"[Yes, No]"]
[null,"Recreational Craft Regulation (RCR) related to UKCA marking for United Kingdom",null,"[Yes, No]"]
[]
[null,"Requirements","(ISO)/{Directive}  reference","Clause","Please"]
[null,null,"if not ISO 6185-1",null,"complete as"]
[{"$nulls":4},"appropriate"]
[]
[1,"Boat category (Type I, II, III A, III B, IV)",null,"[1, 3.14/15]"]
[{"$f":"1+A33","v":2},"Design category (D)","{1}",null,"D"]
[3,"Module",null,null,"A1"]
[4,"Boat type (inflatable boat INF or rigid inflatable boat RIB)",null,"[3.1, 3.2]"]
[5,"Length of the hull (LH < = 8) [m]","(8666)"]
[6,"Waterline length (LWL) [m]","(8666)"]
[7,"Beam of the hull (BH) [m]","(8666)"]
[8,"Maximum declared speed of craft (v) [knots]","(12215-5)"]
[9,"Total mass (M) [kg]",null,"[6.4]"]
[10,"Maximum rated engine power (Pmax < = 4,5)  [kW]","{Annex I A. 4}","[6.2]"]
[11,"Maximum permissible number of persons (n)",null,"[6.1]"]
[12,"Maximum load capacity (m) [kg]",null,"[6.4]"]
[13,"Residual buoyancy (mr  >=  0,5 * m) [kg]",null,"[6.8]"]
[14,"Design working pressure(-s) [bar]",null,"[6.5]"]
[null,"meets the following requirements:"]
[{"$f":"1+A46","v":15},"Static stability",null,"[6.3]","YES"]
[{"$f":"1+A48","v":16},"Manoeuvrability",null,"[6.9]","YES"]
[{"$f":"1+A49","v":17},"Compartmentation",null,"[6.10]","YES"]
[{"$f":"1+A50","v":18},"Complies with Annex A (for type III only)",null,"[Annex A]"]
[{"$f":"1+A51","v":19},"Complies with Annex B (for type IV only)",null,"[Annex B]"]

{"sheet":"ISO 6185-1, Page 2","index":1,"n_rows":52,"n_cols":3,"rows_kept":52,"merged":[[0,0,0,3],[2,0,2,1],[4,1,4,3],[5,1,5,3],[6,1,6,3],[13,2,13,3],[14,0,15,0],[14,2,14,3],[15,2,15,3],[16,0,17,0],[16,2,16,3],[17,2,17,3],[18,0,19,0],[18,2,18,3],[19,2,19,3],[21,0,21,3],[22,0,22,3],[23,0,23,3],[26,0,26,3],[29,0,29,3],[31,0,31,1],[32,0,32,1],[34,0,34,2],[36,0,36,1],[37,0,37,3],[40,0,40,3],[42,0,42,3],[44,0,44,1],[44,2,44,3],[46,0,46,1],[48,0,48,1],[49,0,49,3],[52,0,52,3]]}
[]
[]
[{"$f":"'ISO 6185-1, Page 1'!B3","v":"ISO 6185-1:2001 Inflatables & Ribs en250115"}]
[]
["Boat Manufacturer:",{"$f":"IF(ISBLANK('ISO 6185-1, Page 1'!C9),\" \",'ISO 6185-1, Page 1'!C9)","v":" "}]
["Boat Model Name:",{"$f":"IF(ISBLANK('ISO 6185-1, Page 1'!C21),\" \",'ISO 6185-1, Page 1'!C21)","v":" "}]
["CIN Model Year:",{"$f":"IF(ISBLANK('ISO 6185-1, Page 1'!C20),\" \",'ISO 6185-1, Page 1'!C20)","v":" "}]
[]
["Note:  If boat does not use certified components, the boat manufacturer must enclose"]
["         a filled in component certification application form!"]
[]
["This boat model uses the following components or options [ Annex II ]"]
[]
["Component type","Manufacturer's model(s)","DoC"]
["Sterndrive engines with integral exhaust or outboard engine(s)"]
[]
["Sterndrive engines without integral exhaust or inboard engine(s) with shaft"]
[]
["Windows, portlights, hatches, deadlights and doors"]
[]
[]
["As the manufacturer or his authorised representative, I declare under sole responsibility that the above product(s)"]
["to which this declaration relates is in conformity with the referenced requirements."]
["This application has not been lodged with any other notified body / conformity assessment body."]
[]
["Signature of Manufacturer or his authorised Representative:",null,"Date (yyyy-mm-dd) "]
[" "]
[]
[]
["For IMCI / IMCI (UK) office use only"]
["Application review"]
["Application accepted for IMCI:",null,"[Yes, No] "]
["Application accepted for IMCI(UK):",null,"[Yes, No] "]
["Clear name, signature",null,"date (yyyy-mm-dd) "]
[]
[]
["Comments to application or reason(s) if refused:"]
[]
[]
[]
["For IMCI / IMCI (UK) Inspector use (if applicable)"]
[]
["I declare under our sole responsibility that I have not been active for the manufacturer in design, construction, marketing or other activities. The content of this form has been checked."]
[]
["Place of inspection:"]
[]
["Date of inspection report",null,"(yyyy-mm-dd) "]
[]
["Inspection done by Inspector: Stamp, Clear Name, Signature:"]
[]
[]
["Comments on Inspection by Inspector:"]

{"sheet":"ISO 6815-1, Page 3","index":2,"n_rows":30,"n_cols":3,"rows_kept":30,"merged":[[0,0,0,3],[1,0,1,3],[2,0,2,1],[4,1,4,3],[5,1,5,3],[6,1,6,3],[8,0,8,3],[9,0,9,3],[11,0,11,3],[17,0,17,3],[20,0,20,3],[24,0,24,3],[27,0,27,3]]}
[]
[]
[{"$f":"'ISO 6185-1, Page 1'!B3","v":"ISO 6185-1:2001 Inflatables & Ribs en250115"}]
[]
["Boat Manufacturer:",{"$f":"IF(ISBLANK('ISO 6185-1, Page 1'!C9),\" \",'ISO 6185-1, Page 1'!C9)","v":" "}]
["Boat Model Name:",{"$f":"IF(ISBLANK('ISO 6185-1, Page 1'!C21),\" \",'ISO 6185-1, Page 1'!C21)","v":" "}]
["WIN Model Year:",{"$f":"IF(ISBLANK('ISO 6185-1, Page 1'!C20),\" \",'ISO 6185-1, Page 1'!C20)","v":" "}]
[]
["This page is only for IMCI / IMCI (UK) office use"]
[]
[]
["Inspection details if done at IMCI / IMCI (UK) office"]
[]
["Inspection report date:",null,"(yyyy-mm-dd) "]
[]
[]
["Inspection done by: Clear Name, Signature:"]
[]
[]
["Comments on Inspection report by Office:"]
[]
[]
["Review"]
["Review by Office: Clear Name, Signature and Date:",null,"(yyyy-mm-dd) "]
[]
[]
["Comments on Review by Office:"]
[]
[]
["The certification decision is made by signing and dating the corresponding IMCI certificate"]